fUSD/lending_fUSD_20250101
["ID","MTS","AMOUNT","RATE_DAILY","PERIOD"]
[347366232,1735735838035,-4551.66894985,0.00010958,2]
[347366234,1735735838044,-962.98,0.00010958,2]
[347366236,1735735838053,-698.86,0.00010958,2]
[347366237,1735735838062,-1057.76,0.00010958,2]
[347366239,1735735838071,-500.0,0.00010958,2]
[347366240,1735735838080,-500.0,0.00010958,2]
[347366242,1735735838089,-703.98,0.00010958,2]
[347366243,1735735838099,-500.0,0.00010958,2]
[347366244,1735735838108,-500.0,0.00010958,2]
[347366245,1735735838116,-2194.26,0.00010958,2]
[347366246,1735735838126,-500.0,0.00010958,2]
[347366247,1735735838135,-500.0,0.00010958,2]
[347366248,1735735838144,-500.0,0.00010958,2]
[347366249,1735735838153,-500.0,0.00010958,2]
[347366250,1735735838162,-618.82,0.00010958,2]
[347366251,1735735838172,-848.19,0.00010958,2]
[347366252,1735735838181,-500.0,0.00010958,2]
[347366253,1735735838190,-500.0,0.00010958,2]
[347366254,1735735838199,-1467.54,0.00010958,2]
[347366255,1735735838208,-1605.5,0.00010958,2]
[347366256,1735735838217,-500.0,0.00010958,2]
[347366257,1735735838226,-500.0,0.00010958,2]
[347366258,1735735838235,-500.0,0.00010958,2]
[347366259,1735735838244,-500.0,0.00010958,2]
[347366260,1735735838253,-500.0,0.00010958,2]
[347366261,1735735838262,-500.0,0.00010958,2]
[347366262,1735735838271,-500.0,0.00010958,2]
[347366263,1735735838280,-508.4,0.00010958,2]
[347366264,1735735838289,-852.87,0.00010958,2]
[347366265,1735735838299,-500.0,0.00010958,2]
[347366266,1735735838309,-2502.9871406,0.00010958,2]
[347366267,1735735838340,-2806.13527581,0.00010958,2]
[347366268,1735735838351,-1506.54758359,0.00010958,2]
[347366269,1735735838360,-500.0,0.00010958,2]
[347366270,1735735838369,-500.0,0.00010958,2]
[347366271,1735735838378,-500.0,0.00010958,2]
[347366272,1735735838388,-899.92733698,0.00010958,2]
[347366273,1735735838428,-34.64266302,0.00010958,2]
[347366274,1735735838439,-500.0,0.00010958,2]
[347366275,1735735838448,-702.08,0.00010958,2]
[347366276,1735735838457,-779.42,0.00010958,2]
[347366277,1735735838470,-500.0,0.00010958,2]
[347366278,1735735838479,-436.84633698,0.00010958,2]
[347366279,1735735838491,-63.15366302,0.00010958,2]
[347366280,1735735838500,-500.0,0.00010958,2]
[347366281,1735735838510,-517.82,0.00010958,2]
[347366282,1735735838520,-512.71,0.00010958,2]
[347366283,1735735838529,-641.08,0.00010958,2]
[347366284,1735735838538,-500.0,0.00010958,2]
[347366285,1735735838548,-500.0,0.00010958,2]
[347366286,1735735838558,-562.84,0.00010958,2]
[347366287,1735735838567,-500.0,0.00010958,2]
[347366288,1735735838576,-500.0,0.00010958,2]
[347366289,1735735838585,-632.79,0.00010958,2]
[347366290,1735735838594,-500.0,0.00010958,2]
[347366291,1735735838603,-500.0,0.00010958,2]
[347366292,1735735838612,-500.0,0.00010958,2]
[347366293,1735735838621,-500.0,0.00010958,2]
[347366294,1735735838630,-599.8,0.00010958,2]
[347366295,1735735838639,-500.0,0.00010958,2]
[347366296,1735735838649,-525.53,0.00010958,2]
[347366297,1735735838659,-500.14004937,0.00010958,2]
[347366298,1735735838668,-500.0,0.00010958,2]
[347366299,1735735838679,-604.62,0.00010958,2]
[347366300,1735735838688,-500.0,0.00010958,2]
[347366301,1735735838698,-500.0,0.00010958,2]
[347366302,1735735838707,-606.48,0.00010958,2]
[347366303,1735735838716,-500.0,0.00010958,2]
[347366304,1735735838725,-500.0,0.00010958,2]
[347366305,1735735838735,-500.0,0.00010958,2]
[347366306,1735735838744,-642.06,0.00010958,2]
[347366307,1735735838753,-500.0,0.00010958,2]
[347366308,1735735838762,-500.0,0.00010958,2]
[347366309,1735735838772,-500.0,0.00010958,2]
[347366310,1735735838781,-6114.85,0.00010958,2]
[347366311,1735735838790,-500.0,0.00010958,2]
[347366312,1735735838799,-2158.9,0.00010958,2]
[347366313,1735735838808,-1462.53,0.00010958,2]
[347366314,1735735838817,-501.75,0.00010958,2]
[347366315,1735735838826,-500.0,0.00010958,2]
[347366316,1735735838835,-808.32,0.00010958,2]
[347366317,1735735838847,-500.0,0.00010958,2]
[347366318,1735735838858,-500.0,0.00010958,2]
[347366319,1735735838868,-500.0,0.00010958,2]
[347366320,1735735838878,-500.0,0.00010958,2]
[347366321,1735735838888,-500.0,0.00010958,2]
[347366322,1735735838897,-500.0,0.00010958,2]
[347366323,1735735838906,-500.0,0.00010958,2]
[347366324,1735735838915,-1307.92,0.00010958,2]
[347366325,1735735838924,-677.95,0.00010958,2]
[347366326,1735735838933,-500.0,0.00010958,2]
[347366327,1735735838943,-500.0,0.00010958,2]
[347366328,1735735838952,-472.70884602,0.00010958,2]
[347366329,1735735838961,-500.0,0.00010958,2]
[347366330,1735735838970,-500.00000001,0.00010958,2]
[347366331,1735735838979,-210.47041286,0.00010958,2]
[347366332,1735735838988,-500.0,0.00010958,2]
[347366333,1735735838997,-1217.55,0.00010958,2]
[347366334,1735735839006,-500.0,0.00010958,2]
[347366335,1735735839016,-500.0,0.00010958,2]
[347366336,1735735839025,-500.0,0.00010958,2]
[347366337,1735735839034,-500.0,0.00010958,2]
[347366338,1735735839044,-500.0,0.00010958,2]
[347366339,1735735839054,-500.0,0.00010958,2]
[347366340,1735735839063,-500.0,0.00010958,2]
[347366341,1735735839073,-500.0,0.00010958,2]
[347366342,1735735839082,-876.73,0.00010958,2]
[347366343,1735735839091,-1558.47,0.00010958,2]
[347366344,1735735839100,-869.68,0.00010958,2]
[347366345,1735735839109,-500.0,0.00010958,2]
[347366346,1735735839118,-500.0,0.00010958,2]
[347366347,1735735839127,-837.74,0.00010958,2]
[347366348,1735735839136,-13913.67,0.00010958,2]
[347366349,1735735839145,-500.0,0.00010958,2]
[347366350,1735735839154,-1216.5,0.00010958,2]
[347366351,1735735839163,-500.0,0.00010958,2]
[347366352,1735735839171,-500.0,0.00010958,2]
[347366353,1735735839181,-500.0,0.00010958,2]
[347366354,1735735839190,-1626.62,0.00010958,2]
[347366355,1735735839199,-570.32,0.00010958,2]
[347366356,1735735839208,-500.0,0.00010958,2]
[347366357,1735735839217,-500.0,0.00010958,2]
[347366358,1735735839225,-655.63,0.00010958,2]
[347366359,1735735839234,-500.0,0.00010958,2]
[347366360,1735735839243,-500.0,0.00010958,2]
[347366361,1735735839252,-500.0,0.00010958,2]
[347366362,1735735839261,-500.0,0.00010958,2]
[347366363,1735735839270,-500.0,0.00010958,2]
[347366364,1735735839280,-500.0,0.00010958,2]
[347366365,1735735839289,-1653.47,0.00010958,2]
[347366366,1735735839301,-500.0,0.00010958,2]
[347366367,1735735839310,-2164.52,0.00010958,2]
[347366368,1735735839320,-289.06960414,0.00010958,2]
[347366369,1735735839329,-584.54,0.00010958,2]
[347366370,1735735839339,-500.0,0.00010958,2]
[347366371,1735735839348,-500.0,0.00010958,2]
[347366372,1735735839357,-500.0,0.00010958,2]
[347366373,1735735839366,-500.0,0.00010958,2]
[347366374,1735735839376,-5328.94,0.00010958,2]
[347366375,1735735839385,-500.0,0.00010958,2]
[347366376,1735735839394,-500.0,0.00010958,2]
[347366377,1735735839403,-1372.23,0.00010958,2]
[347366378,1735735839412,-709.58,0.00010958,2]
[347366379,1735735839421,-500.0,0.00010958,2]
[347366380,1735735839431,-931.07,0.00010958,2]
[347366381,1735735839441,-500.0,0.00010958,2]
[347366382,1735735839450,-530.1,0.00010958,2]
[347366383,1735735839461,-500.0,0.00010958,2]
[347366384,1735735839473,-500.0,0.00010958,2]
[347366385,1735735839482,-500.0,0.00010958,2]
[347366386,1735735839491,-500.0,0.00010958,2]
[347366387,1735735839500,-500.0,0.00010958,2]
[347366388,1735735839511,-592.94,0.00010958,2]
[347366390,1735735839520,-9275.84,0.00010958,2]
[347366392,1735735839529,-873.35,0.00010958,2]
[347366394,1735735839541,-500.0,0.00010958,2]
[347366396,1735735839551,-500.0,0.00010958,2]
[347366397,1735735839560,-500.0,0.00010958,2]
[347366399,1735735839569,-500.0,0.00010958,2]
[347366401,1735735839578,-628.87,0.00010958,2]
[347366402,1735735839588,-539.55,0.00010958,2]
[347366404,1735735839597,-500.0,0.00010958,2]
[347366405,1735735839606,-500.0,0.00010958,2]
[347366408,1735735839615,-500.0,0.00010958,2]
[347366410,1735735839624,-704.1,0.00010958,2]
[347366411,1735735839634,-1059.09,0.00010958,2]
[347366413,1735735839643,-500.0,0.00010958,2]
[347366414,1735735839652,-500.0,0.00010958,2]
[347366416,1735735839661,-500.0,0.00010958,2]
[347366418,1735735839671,-500.0,0.00010958,2]
[347366419,1735735839680,-500.0,0.00010958,2]
[347366421,1735735839689,-1054.14,0.00010958,2]
[347366423,1735735839700,-500.0,0.00010958,2]
[347366424,1735735839709,-500.0,0.00010958,2]
[347366426,1735735839719,-826.82,0.00010958,2]
[347366427,1735735839728,-531.1845967,0.00010958,2]
[347366428,1735735839737,-500.0,0.00010958,2]
[347366429,1735735839746,-500.0,0.00010958,2]
[347366430,1735735839755,-957.93,0.00010958,2]
[347366431,1735735839764,-500.0,0.00010958,2]
[347366432,1735735839774,-501.77731727,0.00010958,2]
[347366433,1735735839783,-500.0,0.00010958,2]
[347366434,1735735839794,-1093.26,0.00010958,2]
[347366435,1735735839803,-500.0,0.00010958,2]
[347366436,1735735839815,-550.13,0.00010958,2]
[347366437,1735735839824,-704.65,0.00010958,2]
[347366438,1735735839834,-500.0,0.00010958,2]
[347366439,1735735839843,-739.31,0.00010958,2]
[347366440,1735735839852,-500.0,0.00010958,2]
[347366441,1735735839861,-500.0,0.00010958,2]
[347366442,1735735839870,-1740.91,0.00010958,2]
[347366443,1735735839880,-2468.26,0.00010958,2]
[347366444,1735735839888,-634.72,0.00010958,2]
[347366445,1735735839897,-1255.75,0.00010958,2]
[347366446,1735735839907,-500.0,0.00010958,2]
[347366447,1735735839916,-500.0,0.00010958,2]
[347366448,1735735839925,-500.0,0.00010958,2]
[347366449,1735735839934,-500.0,0.00010958,2]
[347366450,1735735839943,-500.0,0.00010958,2]
[347366451,1735735839952,-843.03,0.00010958,2]
[347366452,1735735839960,-591.61,0.00010958,2]
[347366453,1735735839969,-500.0,0.00010958,2]
[347366454,1735735839978,-879.25,0.00010958,2]
[347366455,1735735839987,-500.0,0.00010958,2]
[347366456,1735735839996,-539.66,0.00010958,2]
[347366457,1735735840005,-1073.32,0.00010958,2]
[347366458,1735735840015,-500.0,0.00010958,2]
[347366459,1735735840024,-1802.97,0.00010958,2]
[347366460,1735735840032,-1462.44,0.00010958,2]
[347366461,1735735840042,-500.0,0.00010958,2]
[347366462,1735735840051,-3460.81,0.00010958,2]
[347366463,1735735840060,-1397.62,0.00010958,2]
[347366464,1735735840070,-500.0,0.00010958,2]
[347366465,1735735840079,-500.0,0.00010958,2]
[347366466,1735735840088,-500.0,0.00010958,2]
[347366467,1735735840097,-500.0,0.00010958,2]
[347366468,1735735840107,-500.0,0.00010958,2]
[347366469,1735735840116,-500.0,0.00010958,2]
[347366470,1735735840125,-500.0,0.00010958,2]
[347366471,1735735840135,-1518.57,0.00010958,2]
[347366472,1735735840144,-4981.0,0.00010958,2]
[347366473,1735735840153,-1364.54,0.00010958,2]
[347366474,1735735840162,-500.0,0.00010958,2]
[347366475,1735735840171,-500.0,0.00010958,2]
[347366476,1735735840180,-2272.55,0.00010958,2]
[347366477,1735735840189,-500.0,0.00010958,2]
[347366478,1735735840198,-500.0,0.00010958,2]
[347366479,1735735840207,-526.4,0.00010958,2]
[347366480,1735735840216,-500.0,0.00010958,2]
[347366481,1735735840225,-500.0,0.00010958,2]
[347366482,1735735840235,-500.0,0.00010958,2]
[347366483,1735735840243,-500.0,0.00010958,2]
[347366484,1735735840252,-534.02,0.00010958,2]
[347366485,1735735840261,-1221.62,0.00010958,2]
[347366486,1735735840271,-502.45,0.00010958,2]
[347366487,1735735840280,-500.0,0.00010958,2]
[347366488,1735735840289,-3738.28,0.00010958,2]
[347366489,1735735840300,-500.0,0.00010958,2]
[347366490,1735735840310,-500.0,0.00010958,2]
[347366491,1735735840565,-500.0,0.00010958,2]
[347366492,1735735840586,-546.86,0.00010958,2]
[347366493,1735735840596,-614.52,0.00010958,2]
[347366494,1735735840605,-1397.38,0.00010958,2]
[347366495,1735735840615,-4753.58,0.00010958,2]
[347366496,1735735840624,-500.0,0.00010958,2]
[347366497,1735735840634,-1224.83,0.00010958,2]
[347366498,1735735840643,-512.05,0.00010958,2]
[347366499,1735735840653,-846.23,0.00010958,2]
[347366500,1735735840662,-500.0,0.00010958,2]
[347366501,1735735840672,-500.0,0.00010958,2]
[347366502,1735735840681,-813.05,0.00010958,2]
[347366503,1735735840690,-1423.93,0.00010958,2]
[347366504,1735735840699,-500.0,0.00010958,2]
[347366505,1735735840711,-2497.99,0.00010958,2]
[347366506,1735735840720,-869.49,0.00010958,2]
[347366507,1735735840729,-959.49,0.00010958,2]
[347366508,1735735840739,-500.0,0.00010958,2]
[347366509,1735735840749,-2720.41,0.00010958,2]
[347366510,1735735840758,-500.0,0.00010958,2]
[347366511,1735735840768,-500.0,0.00010958,2]
[347366512,1735735840777,-500.0,0.00010958,2]
[347366513,1735735840786,-500.0,0.00010958,2]
[347366514,1735735840795,-720.28,0.00010958,2]
[347366515,1735735840803,-500.0,0.00010958,2]
[347366516,1735735840812,-500.0,0.00010958,2]
[347366517,1735735840822,-500.0,0.00010958,2]
[347366518,1735735840831,-2122.11,0.00010958,2]
[347366519,1735735840840,-500.0,0.00010958,2]
[347366520,1735735840850,-500.0,0.00010958,2]
[347366521,1735735840859,-500.0,0.00010958,2]
[347366522,1735735840869,-1181.2,0.00010958,2]
[347366523,1735735840885,-500.0,0.00010958,2]
[347366524,1735735840894,-1284.6,0.00010958,2]
[347366525,1735735840903,-1403.87,0.00010958,2]
[347366526,1735735840912,-1242.78,0.00010958,2]
[347366527,1735735840921,-1971.32,0.00010958,2]
[347366528,1735735840930,-500.0,0.00010958,2]
[347366529,1735735840939,-1243.37,0.00010958,2]
[347366530,1735735840948,-2061.37,0.00010958,2]
[347366531,1735735840957,-529.8,0.00010958,2]
[347366532,1735735840966,-1112.17,0.00010958,2]
[347366533,1735735840975,-500.0,0.00010958,2]
[347366534,1735735840985,-500.0,0.00010958,2]
[347366535,1735735840995,-1812.04,0.00010958,2]
[347366536,1735735841004,-500.0,0.00010958,2]
[347366537,1735735841013,-500.0,0.00010958,2]
[347366538,1735735841022,-1756.18,0.00010958,2]
[347366539,1735735841031,-500.0,0.00010958,2]
[347366540,1735735841040,-1760.75,0.00010958,2]
[347366541,1735735841050,-1937.07,0.00010958,2]
[347366542,1735735841060,-500.0,0.00010958,2]
[347366543,1735735841069,-500.0,0.00010958,2]
[347366544,1735735841078,-500.0,0.00010958,2]
[347366545,1735735841087,-857.26,0.00010958,2]
[347366546,1735735841096,-1100.48,0.00010958,2]
[347366547,1735735841105,-500.0,0.00010958,2]
[347366548,1735735841114,-1460.44,0.00010958,2]
[347366549,1735735841123,-500.0,0.00010958,2]
[347366550,1735735841132,-1253.83,0.00010958,2]
[347366551,1735735841141,-862.7,0.00010958,2]
[347366552,1735735841150,-500.0,0.00010958,2]
[347366553,1735735841159,-925.79,0.00010958,2]
[347366554,1735735841168,-643.95,0.00010958,2]
[347366555,1735735841178,-500.0,0.00010958,2]
[347366556,1735735841187,-500.0,0.00010958,2]
[347366557,1735735841196,-500.0,0.00010958,2]
[347366558,1735735841205,-631.25,0.00010958,2]
[347366559,1735735841214,-792.07,0.00010958,2]
[347366560,1735735841223,-500.0,0.00010958,2]
[347366561,1735735841233,-642.97,0.00010958,2]
[347366562,1735735841242,-500.0,0.00010958,2]
[347366563,1735735841251,-500.0,0.00010958,2]
[347366564,1735735841261,-687.81,0.00010958,2]
[347366565,1735735841270,-500.0,0.00010958,2]
[347366566,1735735841279,-500.17344374,0.00010958,2]
[347366567,1735735841288,-1855.66,0.00010958,2]
[347366568,1735735841298,-785.82,0.00010958,2]
[347366569,1735735841308,-2549.69,0.00010958,2]
[347366570,1735735841317,-500.0,0.00010958,2]
[347366571,1735735841327,-1864.36,0.00010958,2]
[347366572,1735735841336,-603.19,0.00010958,2]
[347366573,1735735841346,-735.65,0.00010958,2]
[347366574,1735735841355,-500.0,0.00010958,2]
[347366575,1735735841364,-2489.28,0.00010958,2]
[347366576,1735735841373,-500.0,0.00010958,2]
[347366577,1735735841382,-962.3,0.00010958,2]
[347366578,1735735841391,-500.0,0.00010958,2]
[347366579,1735735841400,-2616.49,0.00010958,2]
[347366580,1735735841410,-10419.2,0.00010958,2]
[347366581,1735735841419,-500.0,0.00010958,2]
[347366582,1735735841428,-1888.03,0.00010958,2]
[347366583,1735735841437,-500.0,0.00010958,2]
[347366584,1735735841447,-704.04,0.00010958,2]
[347366585,1735735841456,-626.52102783,0.00010958,2]
[347366586,1735735841468,-1252.92,0.00010958,2]
[347366587,1735735841478,-500.0,0.00010958,2]
[347366588,1735735841487,-1772.15,0.00010958,2]
[347366589,1735735841497,-500.0,0.00010958,2]
[347366590,1735735841506,-500.0,0.00010958,2]
[347366591,1735735841515,-1974.03,0.00010958,2]
[347366592,1735735841525,-2347.74,0.00010958,2]
[347366593,1735735841534,-562.86,0.00010958,2]
[347366594,1735735841547,-1779.79,0.00010958,2]
[347366595,1735735841556,-1782.59,0.00010958,2]
[347366596,1735735841565,-864.18,0.00010958,2]
[347366597,1735735841575,-1252.84,0.00010958,2]
[347366598,1735735841584,-1761.28,0.00010958,2]
[347366599,1735735841593,-1618.05,0.00010958,2]
[347366600,1735735841602,-500.0,0.00010958,2]
[347366601,1735735841611,-16667.65,0.00010958,2]
[347366602,1735735841620,-500.0,0.00010958,2]
[347366604,1735735841631,-500.0,0.00010958,2]
[347366606,1735735841640,-500.0,0.00010958,2]
[347366607,1735735841649,-798.48,0.00010958,2]
[347366608,1735735841658,-2076.45,0.00010958,2]
[347366609,1735735841667,-575.12,0.00010958,2]
[347366610,1735735841676,-1017.78,0.00010958,2]
[347366611,1735735841685,-500.0,0.00010958,2]
[347366612,1735735841694,-500.0,0.00010958,2]
[347366613,1735735841703,-2139.63,0.00010958,2]
[347366614,1735735841712,-957.39,0.00010958,2]
[347366615,1735735841721,-500.0,0.00010958,2]
[347366616,1735735841730,-500.0,0.00010958,2]
[347366617,1735735841739,-500.0,0.00010958,2]
[347366618,1735735841748,-500.0,0.00010958,2]
[347366619,1735735841757,-500.0,0.00010958,2]
[347366620,1735735841766,-500.0,0.00010958,2]
[347366621,1735735841774,-500.0,0.00010958,2]
[347366622,1735735841783,-831.57,0.00010958,2]
[347366623,1735735841793,-668.67,0.00010958,2]
[347366625,1735735841802,-1461.55,0.00010958,2]
[347366627,1735735841810,-1173.07,0.00010958,2]
[347366628,1735735841820,-706.04,0.00010958,2]
[347366629,1735735841829,-1441.71,0.00010958,2]
[347366630,1735735841839,-500.0,0.00010958,2]
[347366631,1735735841848,-500.0,0.00010958,2]
[347366632,1735735841858,-500.0,0.00010958,2]
[347366633,1735735841868,-500.0,0.00010958,2]
[347366634,1735735841878,-500.0,0.00010958,2]
[347366635,1735735841888,-553.77,0.00010958,2]
[347366636,1735735841898,-1688.65,0.00010958,2]
[347366637,1735735841907,-500.0,0.00010958,2]
[347366638,1735735841916,-500.0,0.00010958,2]
[347366639,1735735841925,-500.0,0.00010958,2]
[347366640,1735735841934,-946.57,0.00010958,2]
[347366641,1735735841943,-2341.15,0.00010958,2]
[347366642,1735735841952,-685.53,0.00010958,2]
[347366643,1735735841961,-1236.67,0.00010958,2]
[347366644,1735735841970,-500.0,0.00010958,2]
[347366645,1735735841979,-1615.16,0.00010958,2]
[347366646,1735735841987,-1124.26,0.00010958,2]
[347366647,1735735841996,-3252.48,0.00010958,2]
[347366648,1735735842005,-618.23,0.00010958,2]
[347366649,1735735842015,-724.21,0.00010958,2]
[347366650,1735735842024,-500.0,0.00010958,2]
[347366651,1735735842033,-500.0,0.00010958,2]
[347366652,1735735842043,-522.45,0.00010958,2]
[347366653,1735735842052,-1802.49,0.00010958,2]
[347366654,1735735842061,-1330.47,0.00010958,2]
[347366655,1735735842072,-2389.68,0.00010958,2]
[347366656,1735735842082,-500.0,0.00010958,2]
[347366657,1735735842092,-500.0,0.00010958,2]
[347366658,1735735842101,-601.78,0.00010958,2]
[347366659,1735735842111,-500.0,0.00010958,2]
[347366660,1735735842121,-500.0,0.00010958,2]
[347366661,1735735842130,-500.0,0.00010958,2]
[347366662,1735735842140,-1052.33,0.00010958,2]
[347366663,1735735842148,-500.0,0.00010958,2]
[347366664,1735735842159,-2118.94,0.00010958,2]
[347366665,1735735842168,-500.0,0.00010958,2]
[347366666,1735735842180,-500.0,0.00010958,2]
[347366667,1735735842190,-500.0,0.00010958,2]
[347366668,1735735842199,-648.72,0.00010958,2]
[347366669,1735735842208,-789.35,0.00010958,2]
[347366670,1735735842220,-1417.88,0.00010958,2]
[347366671,1735735842231,-2223.55,0.00010958,2]
[347366672,1735735842240,-1349.37,0.00010958,2]
[347366673,1735735842249,-723.1,0.00010958,2]
[347366674,1735735842258,-2394.81,0.00010958,2]
[347366675,1735735842267,-2052.42,0.00010958,2]
[347366676,1735735842277,-500.0,0.00010958,2]
[347366677,1735735842286,-616.18,0.00010958,2]
[347366678,1735735842297,-1441.67,0.00010958,2]
[347366679,1735735842306,-1499.94,0.00010958,2]
[347366680,1735735842315,-1401.93,0.00010958,2]
[347366681,1735735842324,-670.18,0.00010958,2]
[347366682,1735735842333,-427.66692279,0.00010958,2]
[347366683,1735735842343,-500.0,0.00010958,2]
[347366684,1735735842351,-500.0,0.00010958,2]
[347366685,1735735842362,-1807.88,0.00010958,2]
[347366686,1735735842371,-2362.96,0.00010958,2]
[347366687,1735735842381,-500.0,0.00010958,2]
[347366688,1735735842390,-500.0,0.00010958,2]
[347366690,1735735842400,-500.0,0.00010958,2]
[347366691,1735735842409,-500.0,0.00010958,2]
[347366692,1735735842419,-607.12,0.00010958,2]
[347366693,1735735842429,-832.22,0.00010958,2]
[347366694,1735735842440,-1308.75,0.00010958,2]
[347366695,1735735842449,-500.0,0.00010958,2]
[347366696,1735735842459,-1646.55,0.00010958,2]
[347366697,1735735842473,-500.0,0.00010958,2]
[347366698,1735735842482,-500.0,0.00010958,2]
[347366699,1735735842491,-549.59,0.00010958,2]
[347366700,1735735842501,-872.77,0.00010958,2]
[347366701,1735735842510,-1066.81,0.00010958,2]
[347366703,1735735842520,-3613.64,0.00010958,2]
[347366705,1735735842529,-985.04,0.00010958,2]
[347366707,1735735842538,-3382.51,0.00010958,2]
[347366708,1735735842549,-500.0,0.00010958,2]
[347366709,1735735842559,-1498.23,0.00010958,2]
[347366710,1735735842568,-500.0,0.00010958,2]
[347366712,1735735842577,-591.25,0.00010958,2]
[347366714,1735735842587,-500.0,0.00010958,2]
[347366715,1735735842596,-943.83,0.00010958,2]
[347366717,1735735842606,-500.0,0.00010958,2]
[347366719,1735735842615,-973.23,0.00010958,2]
[347366720,1735735842625,-626.8,0.00010958,2]
[347366722,1735735842634,-1852.76,0.00010958,2]
[347366724,1735735842644,-500.0,0.00010958,2]
[347366725,1735735842653,-3600.46698854,0.00010958,2]
[347366727,1735735842662,-2437.43,0.00010958,2]
[347366729,1735735842672,-500.0,0.00010958,2]
[347366731,1735735842682,-5122.11,0.00010958,2]
[347366732,1735735842691,-601.4,0.00010958,2]
[347366734,1735735842700,-544.59,0.00010958,2]
[347366736,1735735842710,-500.0,0.00010958,2]
[347366737,1735735842719,-994.64,0.00010958,2]
[347366738,1735735842729,-500.0,0.00010958,2]
[347366739,1735735842738,-1073.24,0.00010958,2]
[347366741,1735735842748,-1287.26,0.00010958,2]
[347366743,1735735842757,-500.0,0.00010958,2]
[347366745,1735735842766,-712.38,0.00010958,2]
[347366747,1735735842775,-2281.76,0.00010958,2]
[347366749,1735735842784,-500.0,0.00010958,2]
[347366751,1735735842793,-827.01,0.00010958,2]
[347366753,1735735842803,-2126.65,0.00010958,2]
[347366755,1735735842812,-913.49,0.00010958,2]
[347366757,1735735842821,-1079.69,0.00010958,2]
[347366759,1735735842831,-500.0,0.00010958,2]
[347366761,1735735842840,-535.74,0.00010958,2]
[347366763,1735735842849,-500.0,0.00010958,2]
[347366765,1735735842858,-500.0,0.00010958,2]
[347366767,1735735842868,-1281.63,0.00010958,2]
[347366769,1735735842877,-799.91,0.00010958,2]
[347366771,1735735842886,-1368.22,0.00010958,2]
[347366773,1735735842895,-500.0,0.00010958,2]
[347366775,1735735842904,-500.0,0.00010958,2]
[347366777,1735735842913,-512.87728437,0.00010958,2]
[347366779,1735735842922,-542.51,0.00010958,2]
[347366781,1735735842932,-324.22466229,0.00010958,2]
[347366783,1735735842940,-1518.23,0.00010958,2]
[347366785,1735735842950,-500.0,0.00010958,2]
[347366787,1735735842959,-500.0,0.00010958,2]
[347366789,1735735842967,-500.0,0.00010958,2]
[347366792,1735735842976,-500.0,0.00010958,2]
[347366794,1735735842985,-500.0,0.00010958,2]
[347366796,1735735842994,-500.0,0.00010958,2]
[347366798,1735735843003,-1483.84,0.00010958,2]
[347366800,1735735843013,-2158.68,0.00010958,2]
[347366802,1735735843022,-4375.82,0.00010958,2]